Cogmind - Beta 14 @@@ ROGUE MODE // 2024.12.21 @ 21:48:10 Player: blackdogzx Result: Destroyed by H-55 Commando with Gauss Rifle Performance ------------- Evolutions (2) 1000 Regions Visited (3) 600 Robots Destroyed (33) 165 Value Destroyed (695) 695 Prototype IDs (0) 0 Alien Tech Used (0) 0 Bonus (0) 0 TOTAL SCORE: 2460 Bonus ------- None Cogmind --------- Core Integrity 0/550 Matter 233/300 Energy 33/100 System Corruption 12% Temperature Cool (9) Movement Core (100) Ox1 Location -8/Materials Parts ------- > --- POWER (2) -------- (None) > --- PROPULSION (2) --- (None) > --- UTILITY (5) ------ Sensor Array Signal Interpreter > --- WEAPON (2) ------- Minigun > --- INVENTORY (5) ---- Heat Sink Structural Scanner Peak State ------------ > --- POWER ------------ Light Nuclear Core Light Nuclear Core > --- PROPULSION ------- Aluminum Leg Aluminum Leg > --- UTILITY ---------- Small Storage Unit Structural Scanner Advanced Visual Processing Unit Sensor Array Improved Targeting Computer > --- WEAPON ----------- Katana > --- INVENTORY -------- Light Ion Engine Aluminum Leg Heat Sink Structural Scanner Sensor Array Signal Interpreter ECM Suite Light Cannon [Rating: 19] Favorites ----------- Power Light Ion Engine Engine Light Ion Engine Power Core Light Nuclear Core Propulsion Aluminum Leg Leg Aluminum Leg Utility Small Storage Unit Device Structural Scanner Storage Small Storage Unit Processor Improved Targeting Computer Protection Medium Armor Plating Weapon Mining Claw Energy Gun Medium Laser Ballistic Gun Heavy Assault Rifle Ballistic Cannon Light Cannon Launcher Grenade Launcher Slashing Weapon Mining Claw Build | -11 -10 -9 -8 ------- Run | Yrd Mat Mat Mat Slots Evolved 4 | . . 2 2 Power 1 | . . . 1 Propulsion . | . . . . Utility 3 | . . 2 1 Weapon . | . . . . Parts Attached 38 | 6 3 10 19 Power 5 | 1 . 1 3 Engine 3 | 1 . 1 1 Core 2 | . . . 2 Reactor . | . . . . Propulsion 10 | 2 1 1 6 Treads . | . . . . Leg 10 | 2 1 1 6 Wheel . | . . . . Hover . | . . . . Flight . | . . . . Utility 14 | 1 1 6 6 Device 6 | . 1 3 2 Storage 1 | 1 . . . Processor 4 | . . 1 3 Hackware . | . . . . Protection 3 | . . 2 1 Artifact . | . . . . Weapon 9 | 2 1 2 4 Energy Gun 1 | 1 . . . Energy Cannon . | . . . . Ballistic Gun 4 | 1 . 1 2 Ballistic Cannon 1 | . . . 1 Launcher 1 | . 1 . . Special Weapon . | . . . . Impact Weapon . | . . . . Slashing Weapon 2 | . . 1 1 Piercing Weapon . | . . . . Special Melee Weapon . | . . . . Unidentified Prototypes . | . . . . Parts Lost 23 | . . 3 20 Power 5 | . . 1 4 Propulsion 5 | . . . 5 Utility 8 | . . 1 7 Weapon 5 | . . 1 4 Highest Loss Streak 8 | . . 1 8 To Critical Strikes . | . . . . Average Slot Usage (%) 91 | . 95 97 73 Engine 10 | . 14 10 4 Leg 22 | . 28 22 15 Device 17 | . 9 21 13 Storage 11 | . 14 11 9 Processor 2 | . . . 12 Protection 6 | . . 9 3 Energy Gun 3 | . 14 . . Ballistic Gun 5 | . . 8 4 Launcher 4 | . 13 1 . Slashing Weapon 7 | . . 11 5 Peak Build Rating 19 | 6 8 11 19 Average Rating 10 | 5 6 10 13 On Entrance 6 | . 6 8 11 Naked Turns . | . . . . Heaviest Build 27 | 11 14 24 27 Greatest Support 23 | 20 20 20 23 Greatest Overweight (x) 3 | 3 . 1 2 Average Overweight (x) . | . . . . Largest Inventory Capacity 8 | 8 8 8 8 Average Capacity 7 | 7 8 8 7 Most Carried 8 | 2 8 8 8 Average Carried 6 | . 3 7 7 Final Capacity 8 | 8 8 8 5 Final Carried 8 | 2 8 8 2 Class Distribution -------------------- 97% | Mutant Dominant Class ---------------- Mutant | -10/Materials Mutant | -9/Materials Mutant | -8/Materials Resources | -11 -10 -9 -8 ----------- Run | Yrd Mat Mat Mat Matter Collected 589 | 206 35 237 111 Remotely . | . . . . Salvage Created 837 | . 43 480 314 Parts 69 | . 13 42 14 Haulers Intercepted . | . . . . Recyclers Shooed 3 | . 1 1 1 Parts Field Recycled . | . . . . Retrieved Matter . | . . . . Parts Self-Destructed . | . . . . Prevented . | . . . . Kills | -11 -10 -9 -8 ------- Run | Yrd Mat Mat Mat Combat Hostiles Destroyed 25 | . 6 13 6 Melee 17 | . . 13 4 Guns 2 | . . . 2 AOE 6 | . 6 . . Classes Destroyed 6 | . 3 3 . Worker 2 | . 1 . 1 Recycler 2 | . . 2 . Watcher 4 | . 3 1 . Swarmer 15 | . 6 9 . Grunt 8 | . . 3 5 Sentry 2 | . . 1 1 Best Kill Streak 3 | . 3 3 2 Combat Bots Only 3 | . 3 3 1 Max Kills in Single Turn 2 | . 2 1 1 Gunslinging . | . . . . Exploded 2 | . 2 . . Melee 1 | . . 1 1 Uniques/NPCs Destroyed . | . . . . Combat | -11 -10 -9 -8 -------- Run | Yrd Mat Mat Mat Hostile Shots Fired 315 | . 22 89 204 Missed 88 | . 8 20 60 Damage Taken 2849 | . 209 686 1954 Core 700 | . 57 91 552 Absorbed by Shields . | . . . . Regen/Repaired (Parts) 74 | . . 74 . Core Remaining (%) 84 | 100 77 77 . Volleys Fired 36 | . 12 . 24 Largest 2 | . 2 . 2 Hottest 80 | . 80 . 58 Shots Fired 48 | . 23 . 25 Gun 30 | . 12 . 18 Cannon 7 | . . . 7 Launcher 11 | . 11 . . Special . | . . . . Kinetic 25 | . . . 25 Thermal 12 | . 12 . . Explosive 11 | . 11 . . Electromagnetic . | . . . . Robot Hit Streak 8 | . 3 . 8 Robot Miss Streak 4 | . 4 . 1 Penetration Max . | . . . . Secondary Targets . | . . . . Shots Hit Robots 86 | . 9 33 44 Core Hits 36 | . 9 16 11 Critical Kills 1 | . . . 1 Critical Parts Destroyed . | . . . . Critical Strikes 2 | . . . 2 Destroy 1 | . . . 1 Sever 1 | . . . 1 Melee Attacks 98 | . . 64 34 Impact . | . . . . Slashing 98 | . . 64 34 Piercing . | . . . . Sneak Attacks 4 | . . 3 1 Combat Hostiles . | . . . . Follow-up Attacks . | . . . . Damage Inflicted 2716 | . 756 802 1158 Guns 234 | . 38 . 196 Cannons 103 | . . . 103 Explosions 708 | . 708 . . Melee 1612 | . . 792 820 Ramming 59 | . 10 10 39 Kinetic 299 | . . . 299 Thermal 38 | . 38 . . Explosive 708 | . 708 . . Electromagnetic . | . . . . Impact . | . . . . Slashing 1612 | . . 792 820 Piercing . | . . . . Highest Corruption 12 | . . . 12 Average Corruption 6 | . . . 6 Corruption Purged . | . . . . Corruption Blocked . | . . . . Effects 2 | . . . 2 Heat Flow Errors 1 | . . . 1 Data Loss (minor) 1 | . . . 1 Overload Shots . | . . . . Overflow Damage 117 | . 49 6 62 Projectiles . | . . . . Explosions 49 | . 49 . . Melee 68 | . . 6 62 Knockbacks . | . . . . Impact . | . . . . Kinetic . | . . . . Secondary . | . . . . Self-Inflicted Damage 69 | . 69 . . Shots 3 | . 3 . . Rammed 1 | . . . 1 Targets Rammed 16 | . 1 3 12 Kicked 15 | . 1 3 11 Crushed . | . . . . Highest Temperature 126 | . 36 . 126 Average Temperature 25 | . 17 . 46 Received Heat Transfer 705 | . . 174 531 Siege Activations . | . . . . Robots Corrupted . | . . . . Combat Hostiles . | . . . . Parts Fried . | . . . . Impact Corruptions . | . . . . Robots Melted . | . . . . Combat Hostiles . | . . . . Parts Melted . | . . . . Heat Transferred 111 | . 111 . . Parts Sabotaged . | . . . . Parts Stolen . | . . . . Parts Stripped . | . . . . Power Chain Reactions . | . . . . Alert | -11 -10 -9 -8 ------- Run | Yrd Mat Mat Mat Peak Influence 237 | . 237 226 167 Initial 56 | . . 56 37 Average 98 | . 144 92 73 Maximum Alert Level 1 | . 1 1 . Low Security (%) 84 | 100 56 89 100 Level 1 15 | . 43 10 . Level 2 . | . . . . Level 3 . | . . . . Level 4 . | . . . . Level 5 . | . . . . High Security . | . . . . Max Security . | . . . . Squads Dispatched 5 | . 1 1 3 Investigation . | . . . . Extermination . | . . . . Reinforcement 2 | . 1 1 . Assault . | . . . . Garrison 3 | . . . 3 Intercept . | . . . . Searches Triggered . | . . . . Construction Impeded . | . . . . Haulers Reinforced . | . . . . Active Scanning Responses . | . . . . Cargo Convoy Interrupts . | . . . . Stealth | -11 -10 -9 -8 --------- Run | Yrd Mat Mat Mat Distress Signals 2 | . . . 2 Communications Jammed . | . . . . Distress Signals . | . . . . Times Spotted 55 | . 11 24 20 Peak Tracking Total 8 | . 3 5 8 Tactical Retreats 8 | . 1 4 3 Traps | -11 -10 -9 -8 ------- Run | Yrd Mat Mat Mat Traps Triggered 2 | . 1 . 1 Indirectly . | . . . . Trap Hack Attempts . | . . . . Triggered . | . . . . Disarmed . | . . . . Reprogrammed . | . . . . Reused . | . . . . Traps Extracted . | . . . . Installed . | . . . . Triggered . | . . . . Machines | -11 -10 -9 -8 ---------- Run | Yrd Mat Mat Mat Machines Disabled 5 | . 5 . . Max in Single Turn 2 | . 2 . . Machines Repaired . | . . . . Machines Dismantled . | . . . . Machines Sabotaged . | . . . . Overloaded Fab Kills . | . . . . Hacking | -11 -10 -9 -8 --------- Run | Yrd Mat Mat Mat Machines Accessed 4 | . 3 1 . Terminals 3 | . 3 . . Fabricators . | . . . . Repair Stations 1 | . . 1 . Recycling Units . | . . . . Scanalyzers . | . . . . Garrison Access . | . . . . Total Hacks 10 | . 6 4 . Successful 6 | . 3 3 . Failed 4 | . 3 1 . Catastrophic . | . . . . Database Lockouts . | . . . . Manual . | . . . . Terminals 6 | . 6 . . Fabricators . | . . . . Repair Stations 4 | . . 4 . Recycling Units . | . . . . Scanalyzers . | . . . . Garrison Access . | . . . . Terminal Hacks 3 | . 3 . . Record 3 | . 3 . . Fabricator Hacks . | . . . . Repair Station Hacks 3 | . . 3 . Scan Component 2 | . . 2 . Repair 1 | . . 1 . Recycling Unit Hacks . | . . . . Scanalyzer . | . . . . Garrison Access Hacks . | . . . . Unauthorized Hacks . | . . . . Terminals . | . . . . Fabricators . | . . . . Repair Stations . | . . . . Recycling Units . | . . . . Scanalyzers . | . . . . Garrison Access . | . . . . Data Cores Recovered . | . . . . Used . | . . . . Hacking Detections 2 | . 1 1 . Full Trace Events 2 | . 1 1 . Feedback Events . | . . . . Feedback Blocked . | . . . . Robot Schematics Acquired . | . . . . Robots Built . | . . . . Authchips . | . . . . Time . | . . . . Total Robot Build Rating . | . . . . Part Schematics Acquired . | . . . . Parts Built . | . . . . Authchips . | . . . . Time . | . . . . Total Part Build Rating . | . . . . Parts Repaired 1 | . . 1 . Time 32 | . . 32 . Parts Recycled . | . . . . Recycled Matter . | . . . . Retrieved Matter . | . . . . Retrieved Components . | . . . . Parts Scanalyzed . | . . . . Part Schematics Acquired . | . . . . Parts Damaged . | . . . . Bothacking | -11 -10 -9 -8 ------------ Run | Yrd Mat Mat Mat Used RIF Installer . | . . . . Robots Hacked . | . . . . Non-combat . | . . . . Combat . | . . . . Robot Hacks Applied . | . . . . Relay Couplers Released . | . . . . Fabnet Peak Effective % . | . . . . Robots Rewired . | . . . . Allies Hacked . | . . . . Hacks Repelled . | . . . . Allies | -11 -10 -9 -8 -------- Run | Yrd Mat Mat Mat Total Allies . | . . . . Largest Group . | . . . . Highest-Rated Group . | . . . . Highest-Rated Ally . | . . . . Total Orders . | . . . . Ally Attacks . | . . . . Total Damage . | . . . . Kills . | . . . . Allies Corrupted . | . . . . Allies Melted . | . . . . Intel | -11 -10 -9 -8 ------- Run | Yrd Mat Mat Mat Robot Analysis Total . | . . . . Derelict Logs Recovered . | . . . . Drone Launches . | . . . . Drone Recoveries . | . . . . Exploration | -11 -10 -9 -8 ------------- Run | Yrd Mat Mat Mat Turns Passed 2528 | 75 612 1335 506 Spaces Moved 1186 | 52 417 494 223 Core 35 | 10 . . 25 Treads . | . . . . Legs 1151 | 42 417 494 198 Wheels . | . . . . Hover . | . . . . Flight . | . . . . Fastest Speed 50 | 50 120 120 100 Average Speed 142 | 124 120 173 120 Slowest Speed 200 | 200 120 190 190 Overloaded Moves . | . . . . Propulsion Burnouts . | . . . . Robots Hopped . | . . . . Cave-ins Triggered . | . . . . Exploration Rate (%) 28 | 4 62 27 20 Regions Visited 3 Branch Regions . Pre-discovered Areas . | . . . . Known Exits Taken . | . . . . Unknown Exits Taken 3 | 1 1 1 . Scrap Searched . | . . . . Spaces Dug 6 | . . 6 . Terrain Destroyed 53 | . 47 6 . Melee 6 | . . 6 . Projectile . | . . . . AOE 47 | . 47 . . Terrain Rammed . | . . . . Walls Destroyed . | . . . . Machines Disabled . | . . . . Actions | -11 -10 -9 -8 --------- Run | Yrd Mat Mat Mat Total 1786 | 59 504 842 381 Wait 391 | . 67 260 64 Move 1183 | 51 416 493 223 Hop . | . . . . Pick Up 12 | 2 5 5 . Fast Attach 22 | 6 1 5 10 Attach 9 | . . 3 6 Detach 3 | . . 2 1 Swap 7 | . 2 2 3 Drop 9 | . . 5 4 Fire 36 | . 12 . 24 Melee 98 | . . 64 34 Ram 1 | . . . 1 Kick 15 | . 1 3 11 Crush . | . . . . Escape Stasis . | . . . . Rewire . | . . . . Trap . | . . . . Miscellaneous . | . . . . Route ------- -11/Scrapyard -10/Materials (discovered 2 exits: *Mat / [*Min]) -9/Materials (discovered 2 exits: [*Mat] / [*Sto]) -8/Materials History --------- Turn | Location | Event 15 | -11/Scrapyard | Discovered new exit (range 16) 76 | -11/Scrapyard | Entered Materials 234 | -10/Materials | Discovered new exit (range 10) 310 | -10/Materials | Build established: Mutant 587 | -10/Materials | Discovered new exit (range 15) 688 | -10/Materials | Entered another Materials area 688 | -9/Materials | Evolved 2 slots: Utility x2 760 | -9/Materials | Discovered new exit (range 9) 1087 | -9/Materials | Repaired Med. Armor Plating 2012 | -9/Materials | Discovered new exit (range 3) 2023 | -9/Materials | Entered another Materials area 2023 | -8/Materials | Evolved 2 slots: Power x1, Utility x1 2265 | -8/Materials | Garrison activated, responded to threat 2286 | -8/Materials | Lost 3 parts (2p1n) 2478 | -8/Materials | Core integrity fell below 50% 2511 | -8/Materials | Lost 8 parts (1p3n2u2w) 2514 | -8/Materials | Core integrity fell below 20% 2524 | -8/Materials | System corruption reached 10% 2529 | -8/Materials | Destroyed by H-55 Commando with Gauss Rifle Last Messages --------------- within the floor. 02491_ Slug penetrates Wall. 02495_ M-28 Smith repairs B-36 Bruiser. 02501_ Slug penetrates Wall. 02502_ System corrupted: Heat flow error (+157). 02505_ Acquired Minigun. 02513_ Slug penetrates Wall. 02518_ M-28 Smith repairs H-55 Commando. 02519_ Slug penetrates Wall. 02523_ Sml. Storage Unit destroyed. 02523_ ECM Suite destroyed. 02523_ System corrupted by crushing effect (+3). 02523_ Knocked back. 02524_ Slug penetrates Wall. 02525_ Wall collapses. 02526_ Penetrated by Slug. 02526_ Aluminum Leg destroyed. 02528_ System corrupted: Component data lost. 02529_ Penetrated by Slug. Map ----- +----------------------------------------------------+ | ?????????????????????????????# """"" #?????????## | | ?????????????????????????????# """" #######???## | | ?????????????????????????????# "" # ???## | | ?????????????????????????????# # """"""" ## | | ?????????????????????????????# # """"""" ## | | ?????????????????????????????#####+#### """"""" ## | | ???????????????????????????????## / """"""" ## | | ???????????????????????########## ### """"""" ## | | ???????????????????????# % [# #?# ## | | ???????????????????????# % "" # ### = ## | | ???????????????????????# [""" # ########+##### | | ???????????????????????# "" # ! | | ???????????????????????# "" / ^ | | ???????????????????????# " # ^^ """ """ | | ???????????????????????# # #### """ """ | | ???????????????????????#! # #### """ """ | | ???????????????????????# # #?## | | ???????????????????????##########x#?## | | ???????????????????????# #?# #?## % | | ???????????????????????# ### #### ##+###### | | ???????????????????????# h# ## #==% ## | | ???????????????????????# h; = ## #%"" ## | | ???????????????????????# m Yg ## #""" ## | | ???????????????????????# h# ## #""" ## | | ???????????????????????# b # ## # + | | ???????????????????????# @ ######## #/ ## | | ???????????????????????# #?????## ######### | | ???????????????????????# #?????## #### ## | | ???????????????????????# ! #?????## ##????? | | ???????????????????????# #?????## ##?????? | | ???????????????????????# #?????## ##????? | | ???????????????????????########?????## ##?????## | | ????????????????????????????????????## ##?????# | | ????????????????????????????????????## ##??????? | | ????????????????????????????????????## ##??????? | | ????????????????????????????????????## ##??????? | | ????????????????????????????????????## ##??????? | | ????????????????????????????????????## ##?????? | | ????????????????????????????????????## ##??????# | | ????????????????????????????????????## ##??????# | | ????????????????????????????????????## ##??????? | | ????????????????????????????????????#######??????? | | ????????????????????????????????????#######??????? | | ?????????????????????????????????????????????????? | | ?????????????????????????????????????????????????? | | ?????????????????????????????????????????????????? | | | | | | | | | +----------------------------------------------------+ Best States ------------- Heat Dissipation 38 Energy Generation 23 Energy Capacity 250 Matter Stores 300 Matter Capacity 300 Sight Range 20 Robot Scan Range 14 Terrain Scan Density 10 ECM Strength 1 Armor Coverage 225 Evasion (%) 55 Targeting Accuracy 6 Melee Accuracy 5 Item Schematics ----------------- None Robot Schematics ------------------ None Fabricated ------------ Nothing Alien Tech Used ----------------- None Achievements -------------- None Challenges ------------ None Game ------ Seed DiametricEnergyBattery Manual? 0 Play Time 00:29:22 Cumulative 23.9 hours Start 2024.12.21 @ 21:19:05 End 2024.12.21 @ 21:48:10 Sessions 1 Manual Loads 0 Difficulty Rogue Special Mode None Game No. 42 Rogue 39 Adventurer 3 Explorer 0 Win Type - Total 0 Types 0/0/0/0/0/0/0/0/0 Lore% 9 Gallery% 19 Achievement% 16 Wizard Run 0 Options --------- Layout 1 ASCII 0 Keyboard 1 Movement Numpad Keybinds 0 Fullscreen 1 Font 24/Smallcaps Map View 25x17 Zoom Use 3% Tactical HUD 1 Map Filters NONE Filters NONE Steam 1 RUN: d00151c8-485d-43f1-b8e5-3d998f08d289